fUSD/lending_fUSD_20251214
["ID","MTS","AMOUNT","RATE_DAILY","PERIOD"]
[398477173,1765715444200,-1000.0,0.00017799,2]
[398477174,1765715444209,-7117.0,0.00017808,2]
[398477175,1765715444218,-150.0,0.00017808,2]
[398477176,1765715444227,-200.0,0.00017808,2]
[398477177,1765715444238,-500.0,0.00017808,2]
[398477178,1765715444248,-500.0,0.00017808,2]
[398477179,1765715444257,-513.97085587,0.00017808,2]
[398477180,1765715444266,-150.28954526,0.0001782,2]
[398477181,1765715444275,-1000.0,0.00017827,2]
[398477182,1765715444285,-225.18697532,0.00017846,2]
[398477183,1765715444294,-153.63486129,0.00017846,2]
[398477184,1765715444303,-617.40005154,0.00017846,2]
[398477185,1765715444312,-200.0,0.00017855,2]
[398477186,1765715444321,-200.0,0.00017856,2]
[398477187,1765715444333,-1000.0,0.00017858,2]
[398477188,1765715444343,-677.16185997,0.00017858,2]
[398477189,1765715444352,-1000.0,0.00017868,2]
[398477190,1765715444362,-1500.0,0.00017868,2]
[398477191,1765715444371,-500.0,0.00017868,2]
[398477192,1765715444381,-394.62953403,0.00017868,2]
[398477193,1765715444391,-1500.0,0.00017868,2]
[398477194,1765715444401,-500.0,0.00017868,2]
[398477195,1765715444410,-677.16185995,0.00017879,2]
[398477196,1765715444419,-1500.0,0.00017882,2]
[398477197,1765715444428,-1000.0,0.00017886,2]
[398477198,1765715444438,-198.3,0.00017893,2]
[398477199,1765715444447,-3538.6121,0.000179,2]
[398477200,1765715444457,-1923.0801,0.000179,2]
[398477201,1765715444466,-171.53296756,0.000179,2]
[398477202,1765715444476,-3622.68990595,0.000179,2]
[398477203,1765715444485,-799.8678778,0.000179,2]
[398477204,1765715444495,-6257.15809656,0.000179,2]
[398477205,1765715444504,-677.16185995,0.000179,2]
[398477206,1765715444517,-1000.0,0.00017916,2]
[398477207,1765715444526,-207.34948234,0.00017928,2]
[398477208,1765715444536,-1000.0,0.00017932,2]
[398477209,1765715444545,-1392.8116679,0.00017939,7]
[398477210,1765715444554,-7117.0,0.00017945,2]
[398477211,1765715444564,-200.0,0.00017945,2]
[398477212,1765715444574,-500.0,0.00017945,2]
[398477213,1765715444584,-500.0,0.00017958,2]
[398477214,1765715444593,-500.0,0.00017958,2]
[398477215,1765715444602,-500.0,0.00017958,2]
[398477216,1765715444613,-500.0,0.00017958,2]
[398477217,1765715444623,-500.0,0.00017958,2]
[398477218,1765715444633,-500.0,0.00017958,2]
[398477219,1765715444642,-500.0,0.00017958,2]
[398477220,1765715444652,-500.0,0.00017958,2]
[398477221,1765715444661,-500.0,0.00017958,2]
[398477222,1765715444670,-500.0,0.00017958,2]
[398477223,1765715444680,-500.0,0.00017958,2]
[398477224,1765715444689,-500.0,0.00017958,2]
[398477225,1765715444699,-500.0,0.00017958,2]
[398477226,1765715444712,-500.0,0.00017958,2]
[398477227,1765715444721,-500.0,0.00017958,2]
[398477228,1765715444731,-500.0,0.00017958,2]
[398477229,1765715444740,-500.0,0.00017958,2]
[398477230,1765715444750,-500.0,0.00017958,2]
[398477231,1765715444760,-500.0,0.00017958,2]
[398477232,1765715444770,-500.0,0.00017958,2]
[398477233,1765715444780,-500.0,0.00017958,2]
[398477234,1765715444790,-500.0,0.00017958,2]
[398477235,1765715444801,-500.0,0.00017958,2]
[398477236,1765715444810,-500.0,0.00017958,2]
[398477237,1765715444820,-500.0,0.00017958,2]
[398477238,1765715444829,-500.0,0.00017958,2]
[398477239,1765715444839,-500.0,0.00017958,2]
[398477240,1765715444848,-500.0,0.00017958,2]
[398477241,1765715444858,-500.0,0.00017958,2]
[398477242,1765715444867,-500.0,0.00017958,2]
[398477243,1765715444877,-500.0,0.00017958,2]
[398477244,1765715444886,-500.0,0.00017958,2]
[398477245,1765715444895,-500.0,0.00017958,2]
[398477246,1765715444907,-500.0,0.00017958,2]
[398477247,1765715444916,-500.0,0.00017958,2]
[398477248,1765715444925,-500.0,0.00017958,2]
[398477249,1765715444934,-500.0,0.00017958,2]
[398477250,1765715444944,-500.0,0.00017958,2]
[398477251,1765715444954,-500.0,0.00017958,2]
[398477252,1765715444963,-500.0,0.00017958,2]
[398477253,1765715444973,-500.0,0.00017958,2]
[398477254,1765715444982,-500.0,0.00017958,2]
[398477255,1765715444992,-500.0,0.00017958,2]
[398477256,1765715445001,-500.0,0.00017958,2]
[398477257,1765715445011,-500.0,0.00017958,2]
[398477258,1765715445020,-500.0,0.00017958,2]
[398477259,1765715445030,-500.0,0.00017958,2]
[398477260,1765715445039,-500.0,0.00017958,2]
[398477261,1765715445048,-500.0,0.00017958,2]
[398477262,1765715445058,-500.0,0.00017958,2]
[398477263,1765715445067,-500.0,0.00017958,2]
[398477264,1765715445076,-500.0,0.00017958,2]
[398477265,1765715445086,-500.0,0.00017958,2]
[398477266,1765715445095,-500.0,0.00017958,2]
[398477267,1765715445104,-500.0,0.00017958,2]
[398477268,1765715445114,-500.0,0.00017958,2]
[398477269,1765715445125,-500.0,0.00017958,2]
[398477270,1765715445134,-500.0,0.00017958,2]
[398477271,1765715445144,-500.0,0.00017958,2]
[398477272,1765715445154,-500.0,0.00017958,2]
[398477273,1765715445163,-500.0,0.00017958,2]
[398477274,1765715445177,-500.0,0.00017958,2]
[398477275,1765715445188,-500.0,0.00017958,2]
[398477276,1765715445198,-500.0,0.00017958,2]
[398477277,1765715445208,-500.0,0.00017958,2]
[398477278,1765715445218,-500.0,0.00017958,2]
[398477279,1765715445231,-500.0,0.00017958,2]
[398477280,1765715445242,-500.0,0.00017958,2]
[398477281,1765715445252,-500.0,0.00017958,2]
[398477282,1765715445262,-500.0,0.00017958,2]
[398477283,1765715445272,-500.0,0.00017958,2]
[398477284,1765715445281,-500.0,0.00017958,2]
[398477285,1765715445300,-500.0,0.00017958,2]
[398477286,1765715445311,-500.0,0.00017958,2]
[398477287,1765715445321,-500.0,0.00017958,2]
[398477288,1765715445331,-500.0,0.00017958,2]
[398477289,1765715445341,-500.0,0.00017958,2]
[398477290,1765715445351,-500.0,0.00017958,2]
[398477291,1765715445361,-500.0,0.00017958,2]
[398477292,1765715445372,-500.0,0.00017958,2]
[398477293,1765715445382,-500.0,0.00017958,2]
[398477294,1765715445392,-500.0,0.00017958,2]
[398477295,1765715445402,-500.0,0.00017958,2]
[398477296,1765715445412,-500.0,0.00017958,2]
[398477297,1765715445422,-500.0,0.00017958,2]
[398477298,1765715445432,-500.0,0.00017958,2]
[398477299,1765715445443,-500.0,0.00017958,2]
[398477300,1765715445454,-500.0,0.00017958,2]
[398477301,1765715445464,-500.0,0.00017958,2]
[398477302,1765715445474,-500.0,0.00017958,2]
[398477303,1765715445484,-500.0,0.00017958,2]
[398477304,1765715445493,-500.0,0.00017958,2]
[398477305,1765715445503,-500.0,0.00017958,2]
[398477306,1765715445513,-500.0,0.00017958,2]
[398477307,1765715445523,-500.0,0.00017958,2]
[398477309,1765715445532,-500.0,0.00017958,2]
[398477310,1765715445542,-500.0,0.00017958,2]
[398477311,1765715445551,-500.0,0.00017958,2]
[398477312,1765715445561,-500.0,0.00017958,2]
[398477313,1765715445570,-500.0,0.00017958,2]
[398477314,1765715445580,-500.0,0.00017958,2]
[398477315,1765715445590,-500.0,0.00017958,2]
[398477316,1765715445600,-500.0,0.00017958,2]
[398477317,1765715445610,-500.0,0.00017958,2]
[398477318,1765715445620,-500.0,0.00017958,2]
[398477319,1765715445629,-500.0,0.00017958,2]
[398477320,1765715445640,-500.0,0.00017958,2]
[398477321,1765715445655,-500.0,0.00017958,2]
[398477322,1765715445665,-500.0,0.00017958,2]
[398477323,1765715445675,-500.0,0.00017958,2]
[398477324,1765715445686,-500.0,0.00017958,2]
[398477325,1765715445696,-680.0,0.00017958,2]
[398477326,1765715445706,-500.0,0.00017958,2]
[398477327,1765715445716,-500.0,0.00017958,2]
[398477328,1765715445726,-500.0,0.00017958,2]
[398477329,1765715445737,-500.0,0.00017958,2]
[398477330,1765715445747,-500.0,0.00017958,2]
[398477331,1765715445757,-500.0,0.00017958,2]
[398477332,1765715445767,-500.0,0.00017958,2]
[398477333,1765715445776,-500.0,0.00017958,2]
[398477334,1765715445787,-500.0,0.00017958,2]
[398477335,1765715445797,-500.0,0.00017958,2]
[398477336,1765715445806,-500.0,0.00017958,2]
[398477337,1765715445816,-500.0,0.00017958,2]
[398477338,1765715445826,-500.0,0.00017958,2]
[398477339,1765715445835,-500.0,0.00017958,2]
[398477340,1765715445845,-500.0,0.00017958,2]
[398477341,1765715445855,-712.0,0.00017958,2]
[398477342,1765715445864,-500.0,0.00017958,2]
[398477343,1765715445875,-500.0,0.00017958,2]
[398477344,1765715445884,-500.0,0.00017958,2]
[398477345,1765715445895,-500.0,0.00017958,2]
[398477346,1765715445906,-500.0,0.00017958,2]
[398477347,1765715445916,-500.0,0.00017958,2]
[398477348,1765715445925,-500.0,0.00017958,2]
[398477349,1765715445935,-500.0,0.00017958,2]
[398477350,1765715445945,-500.0,0.00017958,2]
[398477351,1765715445954,-500.0,0.00017958,2]
[398477352,1765715445964,-500.0,0.00017958,2]
[398477353,1765715445973,-500.0,0.00017958,2]
[398477354,1765715445983,-500.0,0.00017958,2]
[398477355,1765715445992,-500.0,0.00017958,2]
[398477356,1765715446002,-500.0,0.00017958,2]
[398477357,1765715446011,-500.0,0.00017958,2]
[398477358,1765715446025,-500.0,0.00017958,2]
[398477359,1765715446035,-500.0,0.00017958,2]
[398477360,1765715446044,-500.0,0.00017958,2]
[398477361,1765715446054,-500.0,0.00017958,2]
[398477362,1765715446064,-500.0,0.00017958,2]
[398477363,1765715446073,-500.0,0.00017958,2]
[398477364,1765715446083,-500.0,0.00017958,2]
[398477365,1765715446093,-500.0,0.00017958,2]
[398477366,1765715446104,-500.0,0.00017958,2]
[398477367,1765715446114,-500.0,0.00017958,2]
[398477368,1765715446124,-500.0,0.00017958,2]
[398477369,1765715446134,-500.0,0.00017958,2]
[398477370,1765715446144,-500.0,0.00017958,2]
[398477371,1765715446154,-500.0,0.00017958,2]
[398477372,1765715446164,-500.0,0.00017958,2]
[398477373,1765715446176,-500.0,0.00017958,2]
[398477374,1765715446186,-500.0,0.00017958,2]
[398477375,1765715446195,-500.0,0.00017958,2]
[398477376,1765715446209,-500.0,0.00017958,2]
[398477377,1765715446218,-500.0,0.00017958,2]
[398477378,1765715446228,-500.0,0.00017958,2]
[398477379,1765715446237,-500.0,0.00017958,2]
[398477380,1765715446249,-500.0,0.00017958,2]
[398477381,1765715446259,-500.0,0.00017958,2]
[398477382,1765715446268,-500.0,0.00017958,2]
[398477383,1765715446278,-500.0,0.00017958,2]
[398477384,1765715446288,-500.0,0.00017958,2]
[398477385,1765715446297,-500.0,0.00017958,2]
[398477386,1765715446307,-500.0,0.00017958,2]
[398477387,1765715446317,-500.0,0.00017958,2]
[398477388,1765715446327,-500.0,0.00017958,2]
[398477389,1765715446342,-500.0,0.00017958,2]
[398477390,1765715446354,-500.0,0.00017958,2]
[398477391,1765715446364,-500.0,0.00017958,2]
[398477392,1765715446374,-500.0,0.00017958,2]
[398477393,1765715446384,-500.0,0.00017958,2]
[398477394,1765715446394,-500.0,0.00017958,2]
[398477395,1765715446403,-500.0,0.00017958,2]
[398477396,1765715446416,-500.0,0.00017958,2]
[398477397,1765715446427,-500.0,0.00017958,2]
[398477398,1765715446436,-500.0,0.00017958,2]
[398477399,1765715446446,-500.0,0.00017958,2]
[398477400,1765715446455,-500.0,0.00017958,2]
[398477401,1765715446465,-500.0,0.00017958,2]
[398477402,1765715446474,-500.0,0.00017958,2]
[398477403,1765715446484,-500.0,0.00017958,2]
[398477404,1765715446494,-500.0,0.00017958,2]
[398477405,1765715446504,-500.0,0.00017958,2]
[398477406,1765715446514,-500.0,0.00017958,2]
[398477407,1765715446523,-500.0,0.00017958,2]
[398477408,1765715446533,-500.0,0.00017958,2]
[398477409,1765715446543,-500.0,0.00017958,2]
[398477410,1765715446552,-500.0,0.00017958,2]
[398477411,1765715446562,-500.0,0.00017958,2]
[398477412,1765715446571,-500.0,0.00017958,2]
[398477413,1765715446581,-500.0,0.00017958,2]
[398477414,1765715446591,-500.0,0.00017958,2]
[398477415,1765715446606,-500.0,0.00017958,2]
[398477416,1765715446616,-500.0,0.00017958,2]
[398477417,1765715446625,-500.0,0.00017958,2]
[398477418,1765715446634,-500.0,0.00017958,2]
[398477419,1765715446644,-500.0,0.00017958,2]
[398477420,1765715446653,-500.0,0.00017958,2]
[398477421,1765715446663,-500.0,0.00017958,2]
[398477422,1765715446672,-500.0,0.00017958,2]
[398477423,1765715446682,-500.0,0.00017958,2]
[398477424,1765715446691,-500.0,0.00017958,2]
[398477425,1765715446701,-500.0,0.00017958,2]
[398477426,1765715446711,-500.0,0.00017958,2]
[398477427,1765715446720,-500.0,0.00017958,2]
[398477428,1765715446729,-500.0,0.00017958,2]
[398477429,1765715446739,-500.0,0.00017958,2]
[398477430,1765715446749,-500.0,0.00017958,2]
[398477431,1765715446758,-500.0,0.00017958,2]
[398477432,1765715446768,-500.0,0.00017958,2]
[398477433,1765715446778,-500.0,0.00017958,2]
[398477434,1765715446787,-500.0,0.00017958,2]
[398477435,1765715446796,-500.0,0.00017958,2]
[398477436,1765715446806,-500.0,0.00017958,2]
[398477437,1765715446815,-500.0,0.00017958,2]
[398477438,1765715446824,-500.0,0.00017958,2]
[398477439,1765715446834,-500.0,0.00017958,2]
[398477440,1765715446844,-500.0,0.00017958,2]
[398477441,1765715446854,-500.0,0.00017958,2]
[398477442,1765715446863,-500.0,0.00017958,2]
[398477443,1765715446873,-500.0,0.00017958,2]
[398477444,1765715446882,-500.0,0.00017958,2]
[398477445,1765715446892,-500.0,0.00017958,2]
[398477446,1765715446902,-500.0,0.00017958,2]
[398477447,1765715446911,-500.0,0.00017958,2]
[398477448,1765715446921,-500.0,0.00017958,2]
[398477449,1765715446930,-500.0,0.00017958,2]
[398477450,1765715446939,-500.0,0.00017958,2]
[398477451,1765715446949,-500.0,0.00017958,2]
[398477452,1765715446958,-500.0,0.00017958,2]
[398477453,1765715446967,-500.0,0.00017958,2]
[398477454,1765715446977,-500.0,0.00017958,2]
[398477455,1765715446986,-500.0,0.00017958,2]
[398477456,1765715446996,-500.0,0.00017958,2]
[398477457,1765715447005,-500.0,0.00017958,2]
[398477458,1765715447015,-500.0,0.00017958,2]
[398477459,1765715447026,-500.0,0.00017958,2]
[398477460,1765715447035,-151.0,0.00017958,2]
[398477461,1765715447045,-500.0,0.00017958,2]
[398477462,1765715447055,-500.0,0.00017958,2]
[398477463,1765715447064,-500.0,0.00017958,2]
[398477464,1765715447073,-500.0,0.00017958,2]
[398477465,1765715447083,-500.0,0.00017958,2]
[398477466,1765715447092,-500.0,0.00017958,2]
[398477467,1765715447102,-500.0,0.00017958,2]
[398477468,1765715447112,-500.0,0.00017958,2]
[398477469,1765715447121,-500.0,0.00017958,2]
[398477470,1765715447131,-500.0,0.00017958,2]
[398477471,1765715447148,-500.0,0.00017958,2]
[398477472,1765715447158,-500.0,0.00017958,2]
[398477473,1765715447170,-500.0,0.00017958,2]
[398477474,1765715447180,-500.0,0.00017958,2]
[398477475,1765715447190,-500.0,0.00017958,2]
[398477476,1765715447200,-500.0,0.00017958,2]
[398477477,1765715447210,-500.0,0.00017958,2]
[398477478,1765715447219,-500.0,0.00017958,2]
[398477479,1765715447229,-500.0,0.00017958,2]
[398477480,1765715447239,-500.0,0.00017958,2]
[398477481,1765715447251,-500.0,0.00017958,2]
[398477482,1765715447260,-500.0,0.00017958,2]
[398477483,1765715447269,-500.0,0.00017958,2]
[398477484,1765715447279,-500.0,0.00017958,2]
[398477485,1765715447289,-500.0,0.00017958,2]
[398477486,1765715447299,-500.0,0.00017958,2]
[398477487,1765715447308,-151.0,0.00017958,2]
[398477488,1765715447318,-866.0,0.00017958,2]
[398477489,1765715447327,-151.0,0.00017958,2]
[398477490,1765715447337,-151.0,0.00017958,2]
[398477491,1765715447347,-71.1470092,0.00017958,2]
[398477492,1765715447875,-1.7e-07,0.00017958,2]
[398477493,1765715447900,-428.85299063,0.00017958,2]
[398477494,1765715447910,-500.0,0.00017958,2]
[398477495,1765715447919,-500.0,0.00017958,2]
[398477496,1765715447929,-500.0,0.00017958,2]
[398477497,1765715447939,-500.0,0.00017958,2]
[398477498,1765715447949,-34.47700937,0.00017958,2]
[398477499,1765715448628,-171.08099914,0.00015902,2]
[398477500,1765715448639,-1324.0,0.00016907,2]
[398477501,1765715448649,-465.52299063,0.00017958,2]
[398477502,1765715448658,-500.0,0.00017958,2]
[398477503,1765715448669,-500.0,0.00017958,2]
[398477504,1765715448679,-500.0,0.00017958,2]
[398477505,1765715448688,-500.0,0.00017958,2]
[398477506,1765715448697,-160.07174498,0.00017958,2]
[398477507,1765715448884,-480.71,0.00016164,2]
[398477508,1765715448894,-1463.72261933,0.000179,2]
[398477509,1765715448903,-229.90738068,0.00017958,2]
[398477534,1765715477973,500.0,0.00015598,2]
[398477535,1765715478013,469.53272392,0.00015598,2]
[398477566,1765715563119,500.0,0.00015499,2]
[398477577,1765715597590,504.89891981,0.00015598,2]
[398477585,1765715870713,150.0,0.00015412,2]
[398477586,1765715883066,6386.36,0.00015412,2]
[398477590,1765715938395,192.62,0.00015412,2]
[398477591,1765716000136,1000.0,0.00013699,2]
[398477593,1765716077161,673.73,0.00022,30]
[398477594,1765716140592,166.66,0.00014641,2]
[398477595,1765716140786,166.66,0.00014949,2]
[398477596,1765716141184,166.66,0.00015258,2]
[398477597,1765716141472,166.66,0.00015566,2]
[398477601,1765716304442,180.0,0.0002244,120]
[398477602,1765716305726,1942.69,0.00015412,2]
[398477630,1765716388303,1000.0,0.00015412,2]
[398477631,1765716396728,207.0,9.989e-05,2]
[398477632,1765716397052,207.0,9.989e-05,2]
[398477633,1765716397358,207.0,9.989e-05,2]
[398477634,1765716397664,207.0,9.989e-05,2]
[398477635,1765716397983,207.0,9.989e-05,2]
[398477636,1765716398317,207.0,9.989e-05,2]
[398477643,1765716429376,579.99190904,0.00015598,2]
[398477651,1765716631915,-500.0,0.00015802,2]
[398477652,1765716631925,-282.0,0.00015802,2]
[398477653,1765716631934,-199.48447556,0.00015834,2]
[398477654,1765716631944,-166.66,0.00015874,2]
[398477655,1765716631953,-150.88,0.00015902,2]
[398477656,1765716631962,-150.2,0.00015904,2]
[398477657,1765716631971,-151.96,0.00015909,2]
[398477658,1765716631981,-152.04,0.00015909,2]
[398477659,1765716631990,-151.35,0.00015928,2]
[398477660,1765716632000,-152.52,0.00015934,2]
[398477661,1765716632009,-276.25331,0.00016,2]
[398477662,1765716632018,-150.48,0.00016008,2]
[398477663,1765716632028,-150.41,0.00016008,2]
[398477664,1765716632037,-1200.0,0.00016114,2]
[398477665,1765716632046,-240.6866228,0.00016114,2]
[398477666,1765716632063,-59.3133772,0.00016114,2]
[398477667,1765716632072,-300.0,0.00016114,2]
[398477668,1765716632081,-250.3400988,0.00016114,2]
[398477669,1765716632093,-949.6599012,0.00016114,2]
[398477670,1765716632101,-198.55996619,0.00016114,2]
[398477671,1765716632112,-101.44003381,0.00016114,2]
[398477672,1765716632121,-150.99,0.00016116,2]
[398477673,1765716632130,-3788.73404511,0.00016116,2]
[398477674,1765716632141,-6211.25595489,0.00016116,2]
[398477676,1765716632150,-6252.35,0.00016116,2]
[398477678,1765716632159,-999.99,0.00016116,2]
[398477679,1765716632169,-166.66,0.00016182,2]
[398477680,1765716632179,-150.0,0.000162,2]
[398477681,1765716632188,-150.0,0.000162,2]
[398477682,1765716632197,-150.0,0.000162,2]
[398477684,1765716632207,-150.0,0.000162,2]
[398477686,1765716632216,-150.0,0.000162,2]
[398477688,1765716632226,-150.0,0.000162,2]
[398477691,1765716632236,-150.0,0.000162,2]
[398477693,1765716632246,-181.03799021,0.00016232,2]
[398477695,1765716632255,-17361.64936667,0.00016243,2]
[398477697,1765716632266,-377.31369087,0.00016243,2]
[398477699,1765716632277,-2247.73694246,0.00016243,2]
[398477701,1765716632285,-171.08099914,0.00016302,2]
[398477703,1765716632295,-999.0,0.00016435,3]
[398477705,1765716632304,-170.44,0.00016438,2]
[398477707,1765716632313,-170.44,0.00016438,2]
[398477709,1765716632322,-340.67,0.00016438,2]
[398477711,1765716632331,-597.65,0.00016529,2]
[398477713,1765716632341,-300.0,0.00016606,2]
[398477715,1765716632350,-1111.0,0.00016606,2]
[398477717,1765716632359,-1111.0,0.00016661,2]
[398477719,1765716632368,-171.08099914,0.00016701,2]
[398477721,1765716632378,-1148.83085212,0.00016716,2]
[398477723,1765716632387,-353.66007049,0.00016773,2]
[398477725,1765716632396,-500.0,0.00016773,2]
[398477727,1765716632405,-500.0,0.00016773,2]
[398477729,1765716632415,-167.99,0.00016832,2]
[398477731,1765716632423,-150.92652695,0.00016923,2]
[398477734,1765716632439,-330.2257753,0.00016923,2]
[398477736,1765716632449,-500.0,0.00016973,2]
[398477738,1765716632458,-500.0,0.00016973,2]
[398477740,1765716632468,-168.18995444,0.00017,2]
[398477742,1765716632479,-1831.81004556,0.00017,2]
[398477744,1765716632489,-250.0,0.00017,2]
[398477746,1765716632498,-2000.0,0.00017,2]
[398477749,1765716632507,-317.0,0.00017084,2]
[398477750,1765716632516,-174.38995444,0.0001709,2]
[398477753,1765716632527,-18.43004556,0.0001709,2]
[398477755,1765716632536,-151.0,0.00017091,2]
[398477757,1765716632545,-953.61041355,0.00017091,2]
[398477759,1765716632556,-46.38958645,0.00017091,2]
[398477761,1765716632565,-218.18981355,0.00017091,2]
[398477764,1765716632580,-781.81018645,0.00017091,2]
[398477765,1765716632589,-1000.0,0.00017091,2]
[398477768,1765716632600,-1000.0,0.00017091,2]
[398477770,1765716632609,-208.5647437,0.00017091,2]
[398477772,1765716632618,-1000.0,0.00017091,2]
[398477773,1765716632628,-1000.0,0.00017091,2]
[398477775,1765716632639,-1000.0,0.00017091,2]
[398477778,1765716632648,-1000.0,0.00017091,2]
[398477780,1765716632658,-1000.0,0.00017091,2]
[398477781,1765716632667,-574.12855637,0.00017091,2]
[398477784,1765716632676,-1000.0,0.00017091,2]
[398477787,1765716632694,-160.0,0.00017091,2]
[398477789,1765716632705,-1000.0,0.00017091,2]
[398477791,1765716632714,-250.0,0.00017091,2]
[398477793,1765716632723,-250.0,0.00017091,2]
[398477795,1765716632733,-250.0,0.00017091,2]
[398477797,1765716632742,-250.0,0.00017091,2]
[398477799,1765716632751,-250.0,0.00017091,2]
[398477801,1765716632760,-250.0,0.00017091,2]
[398477803,1765716632770,-250.0,0.00017091,2]
[398477805,1765716632779,-250.0,0.00017091,2]
[398477807,1765716632788,-250.0,0.00017091,2]
[398477809,1765716632798,-250.0,0.00017091,2]
[398477811,1765716632808,-178.95323031,0.00017091,2]
[398477888,1765716638013,-71.04676969,0.00017091,2]
[398477889,1765716638023,-150.0,0.000171,2]
[398477890,1765716638033,-150.0,0.000171,2]
[398477891,1765716638043,-150.0,0.000171,2]
[398477892,1765716638053,-171.08099914,0.00017101,2]
[398477893,1765716638068,-500.0,0.00017142,2]
[398477894,1765716638078,-500.0,0.00017142,2]
[398477895,1765716638088,-184.70187601,0.00017142,2]
[398477896,1765716638099,-3451.0,0.00017143,2]
[398477897,1765716638109,-611.0,0.00017143,2]
[398477898,1765716638120,-1324.0,0.00017143,2]
[398477899,1765716638130,-1607.0,0.00017143,2]
[398477900,1765716638141,-589.0,0.00017143,2]
[398477901,1765716638151,-1261.0,0.00017143,2]
[398477902,1765716638161,-911.0,0.00017143,2]
[398477903,1765716638171,-1196.0,0.00017143,2]
[398477904,1765716638181,-2426.0,0.00017143,2]
[398477905,1765716638191,-4797.0,0.00017143,2]
[398477906,1765716638201,-150.0,0.00017143,2]
[398477907,1765716638210,-1216.94,0.0001726,2]
[398477908,1765716638220,-178.24,0.0001726,2]
[398477909,1765716638230,-1000.0,0.00017321,2]
[398477910,1765716638241,-150.85899699,0.00017321,2]
[398477911,1765716638251,-2000.0,0.00017329,2]
[398477912,1765716638261,-2000.0,0.00017329,2]
[398477913,1765716638271,-2000.0,0.00017329,2]
[398477914,1765716638281,-2000.0,0.00017329,2]
[398477915,1765716638291,-2000.0,0.00017329,2]
[398477916,1765716638301,-2000.0,0.00017329,2]
[398477917,1765716638312,-2000.0,0.00017329,2]
[398477918,1765716638322,-2000.0,0.00017329,2]
[398477919,1765716638331,-2000.0,0.00017329,2]
[398477920,1765716638342,-228.801,0.00017329,2]
[398477921,1765716638352,-2000.0,0.00017329,2]
[398477922,1765716638362,-2000.0,0.00017329,2]
[398477923,1765716638371,-1000.0,0.00017338,2]
[398477924,1765716638380,-192.82,0.00017364,2]
[398477925,1765716638390,-300.0,0.00017382,2]
[398477926,1765716638400,-300.0,0.00017382,2]
[398477927,1765716638409,-300.0,0.00017382,2]
[398477928,1765716638424,-300.0,0.00017382,2]
[398477929,1765716638434,-300.0,0.00017382,2]
[398477930,1765716638444,-250.0,0.00017382,2]
[398477931,1765716638455,-250.0,0.00017382,2]
[398477932,1765716638465,-317.0,0.0001747,2]
[398477933,1765716638475,-171.08099914,0.000175,2]
[398477934,1765716638486,-168.0,0.00017511,2]
[398477935,1765716638496,-526.22644283,0.00017521,2]
[398477936,1765716638506,-519.42412245,0.00017521,2]